Workbook

Sheet VHP
A1: JUNTA MUNICIPAL DE AGUA POTABLE Y SANEAMIENTO DE SAN LUIS DE LA PAZ Estado de Variación en la Hacienda Pública Del 01 DE ENERO 2025 al 30 DE SEPTIEMBRE DE 2025 (Cifras en Pesos)
A2: Concepto | B2: Hacienda Pública / Patrimonio Contribuido | C2: Hacienda Pública / Patrimonio Generado de Ejercicios Anteriores | D2: Hacienda Pública / Patrimonio Generado del Ejercicio | E2: Exceso o Insuficiencia en la Actualización de la Hacienda Pública / Patrimonio | F2: Total
A4: Hacienda Pública/Patrimonio Contribuido Neto de 2024 | B4: =SUM(B5:B8) -> -27,263,111.39 | F4: =F5 -> -27,263,111.39
A5: Aportaciones | B5: -27,263,111.39 | F5: =B5+C5+D5+E5 -> -27,263,111.39
A6: Donaciones de Capital | B6: 0.00 | F6: =B6+C6+D6+E6 -> 0.00
A7: Actualización de la Hacienda Pública/Patrimonio | B7: 0.00 | F7: =B7+C7+D7+E7 -> 0.00
A9: Hacienda Pública/Patrimonio Generado Neto de 2024 | C9: =SUM(C11:C14) -> 62,946,096.27 | D9: =D10 -> 1,586,811.03 | F9: =F11 -> 62,946,096.27
A10: Resultados del Ejercicio (Ahorro/Desahorro) | D10: 1,586,811.03 | F10: 0.00
A11: Resultados de Ejercicios Anteriores | C11: 62,946,096.27 | F11: =B11+C11+D11+E11 -> 62,946,096.27
A12: Revalúos | C12: 0.00 | F12: =B12+C12+D12+E12 -> 0.00
A13: Reservas | C13: 0.00 | F13: =B13+C13+D13+E13 -> 0.00
A14: Rectificaciones de Resultados de Ejercicios Anteriores | C14: 0.00 | F14: =B14+C14+D14+E14 -> 0.00
A16: Exceso o Insuficiencia en la Actualización de la Hacienda Pública/Patrimonio Neto de 2024 | E16: 0.00 | F16: 0.00
A17: Resultado por Posición Monetaria | E17: 0.00 | F17: =B17+C17+D17+E17 -> 0.00
A18: Resultado por Tenencia de Activos no Monetarios | E18: 0.00 | F18: =B18+C18+D18+E18 -> 0.00
A20: Hacienda Pública/Patrimonio Neto Final de 2024 | B20: =SUM(B5:B7) -> -27,263,111.39 | C20: =C9 -> 62,946,096.27 | D20: =D9 -> 1,586,811.03 | E20: 0.00 | F20: =B20+C20+D20+E20 -> 37,269,795.91
A22: Cambios en la Hacienda Pública/Patrimonio Contribuido Neto de 2025 | B22: 0.00 | F22: =SUM(B22) -> 0.00
A23: Aportaciones | B23: 0 | F23: =SUM(B23) -> 0.00
A24: Donaciones de Capital | B24: 0 | F24: =SUM(B24) -> 0.00
A25: Actualización de la Hacienda Pública/Patrimonio | B25: 0 | F25: =SUM(B25) -> 0.00
A27: Variaciones de la Hacienda Pública/Patrimonio Generado Neto de 2025 | C27: =SUM(C29) -> -447,446.62 | D27: =SUM(D28:D32) -> 7,554,070.09 | F27: =C27+D27 -> 7,106,623.47
A28: Resultados del Ejercicio (Ahorro/Desahorro) | D28: 9,140,881.12 | F28: 9,140,881.12
A29: Resultados de Ejercicios Anteriores | C29: -447,446.62 | D29: -1,586,811.03 | F29: =C29+D29 -> -2,034,257.65
A30: Revalúos | D30: 0 | F30: =D30 -> 0.00
A31: Reservas | D31: 0 | F31: =D31 -> 0.00
A32: Rectificaciones de Resultados de Ejercicios Anteriores | D32: 0 | F32: =D32 -> 0.00
A34: Cambios en el Exceso o Insuficiencia en la Actualización de la Hacienda Pública/Patrimonio Neto de 2025 | E34: =SUM(E35:E36) -> 0.00 | F34: 0.00
A35: Resultado por Posición Monetaria | E35: 0.00 | F35: =B35+C35+D35+E35 -> 0.00
A36: Resultado por Tenencia de Activos no Monetarios | E36: 0.00 | F36: =B36+C36+D36+E36 -> 0.00
A38: Hacienda Pública/Patrimonio Neto Final de 2025 | B38: =B20+B22 -> -27,263,111.39 | C38: =C20+C27 -> 62,498,649.65 | D38: =D27+D20 -> 9,140,881.12 | E38: =E34+E20 -> 0.00 | F38: =B38+C38+D38+E38 -> 44,376,419.38
A40: Bajo protesta de decir verdad declaramos que los Estados Financieros y sus notas, son razonablemente correctos y son responsabilidad del emisor. | F40: =F38-[1]ESF!$E$46 -> 0.00
A43: ____________________________________________ | B43: _________________________________________
A44: ING.JOSE ROBERTO REGALADO ARREOLA | B44: C.P. JOSÉ JESÚS RIVERA MORALES
A45: DIRECTOR GENERAL DE LA JAPASP | B45: ENCARAGADO DE CONTABILIDAD DE LA JAPASP
